[Event "Betsys MČR v online bleskovém šachu 2021"]
[Site "Chess.com"]
[Date "2021.04.17"]
[Round "9"]
[White "8_olda_8"]
[Black "JindrichT_CZE"]
[Result "0-1"]
[WhiteElo "1796"]
[BlackElo "2059"]
[TimeControl "180+1"]
[EndTime "10:30:42 PDT"]
[Termination "Uživatel JindrichT_CZE zvítězil po vzdání soupeře"]

1. d4 {[%clk 0:03:00.9]} 1... d5 {[%clk 0:02:59.3]} 2. c4 {[%clk 0:03:00.9]}
2... e6 {[%clk 0:02:59]} 3. Nc3 {[%clk 0:03:00.2]} 3... Nf6 {[%clk 0:02:58.7]}
4. Nf3 {[%clk 0:02:59.1]} 4... c6 {[%clk 0:02:58]} 5. Bg5 {[%clk 0:02:58]} 5...
Nbd7 {[%clk 0:02:57.8]} 6. e3 {[%clk 0:02:56.1]} 6... Qa5 {[%clk 0:02:57.6]} 7.
Bh4 {[%clk 0:02:09.8]} 7... Ne4 {[%clk 0:02:55.5]} 8. Qc2 {[%clk 0:02:08.4]}
8... Bb4 {[%clk 0:02:54.8]} 9. Nd2 {[%clk 0:02:08.1]} 9... Bxc3 {[%clk
0:02:39.8]} 10. bxc3 {[%clk 0:02:07.1]} 10... Qxc3 {[%clk 0:02:39.6]} 11. Bd3
{[%clk 0:02:04.2]} 11... Qxa1+ {[%clk 0:02:37]} 12. Nb1 {[%clk 0:02:02]} 12...
Nc3 {[%clk 0:02:17.2]} 13. Qxc3 {[%clk 0:02:00.3]} 13... Qxc3+ {[%clk
0:02:16.2]} 14. Nxc3 {[%clk 0:02:01.2]} 14... O-O {[%clk 0:02:15.1]} 15. c5
{[%clk 0:01:27.6]} 15... f6 {[%clk 0:02:12.7]} 16. f4 {[%clk 0:01:19.5]} 16...
e5 {[%clk 0:02:07.8]} 17. fxe5 {[%clk 0:01:18.6]} 17... fxe5 {[%clk 0:02:07.7]}
18. Be7 {[%clk 0:00:56.5]} 18... Re8 {[%clk 0:02:06.9]} 19. Bd6 {[%clk
0:00:56.8]} 19... exd4 {[%clk 0:02:06.8]} 20. Nd1 {[%clk 0:00:50.4]} 20... dxe3
{[%clk 0:02:03.5]} 21. Ke2 {[%clk 0:00:50.9]} 21... Nf6 {[%clk 0:02:02.3]} 22.
h3 {[%clk 0:00:46.2]} 22... d4 {[%clk 0:01:58.7]} 23. Nb2 {[%clk 0:00:42.7]}
23... Be6 {[%clk 0:01:55.4]} 24. a4 {[%clk 0:00:39.1]} 24... b6 {[%clk
0:01:40.8]} 25. Rd1 {[%clk 0:00:37.1]} 25... Nd5 {[%clk 0:01:35.6]} 26. Bc4
{[%clk 0:00:31.3]} 26... Nc3+ {[%clk 0:01:35]} 27. Ke1 {[%clk 0:00:30.8]} 27...
Nxd1 {[%clk 0:01:34.7]} 28. Kxd1 {[%clk 0:00:31.7]} 28... Bxc4 {[%clk
0:01:34.5]} 29. Nxc4 {[%clk 0:00:32.6]} 29... bxc5 {[%clk 0:01:33.8]} 30. Bxc5
{[%clk 0:00:33.5]} 30... Re4 {[%clk 0:01:15]} 31. Ke2 {[%clk 0:00:31]} 31... a6
{[%clk 0:01:09.1]} 32. Nd6 {[%clk 0:00:25.2]} 32... d3+ {[%clk 0:01:04.6]} 33.
Kxd3 {[%clk 0:00:20.4]} 33... Rxa4 {[%clk 0:01:04.1]} 34. Bxe3 {[%clk 0:00:19]}
34... Rd8 {[%clk 0:01:03.7]} 35. Bc5 {[%clk 0:00:15.9]} 35... Ra2 {[%clk
0:01:00.1]} 36. g4 {[%clk 0:00:13.7]} 36... Rh2 {[%clk 0:00:59.5]} 37. Ke4
{[%clk 0:00:13.3]} 37... Rxd6 {[%clk 0:00:58.9]} 38. Bxd6 {[%clk 0:00:13.2]}
38... Rxh3 {[%clk 0:00:58.6]} 39. g5 {[%clk 0:00:12.4]} 39... Rc3 {[%clk
0:00:55]} 40. Kd4 {[%clk 0:00:11.7]} 40... Rc1 {[%clk 0:00:54.7]} 41. Be7 {[%clk
0:00:11.8]} 41... Kf7 {[%clk 0:00:52.1]} 42. Ba3 {[%clk 0:00:12.5]} 42... Rg1
{[%clk 0:00:49.2]} 43. Kc5 {[%clk 0:00:11.1]} 43... Rxg5+ {[%clk 0:00:46.3]} 44.
Kxc6 {[%clk 0:00:12]} 44... Rg2 {[%clk 0:00:44]} 45. Kb6 {[%clk 0:00:10.1]}
45... h5 {[%clk 0:00:42.5]} 46. Kxa6 {[%clk 0:00:09.4]} 46... Ra2 {[%clk
0:00:42.1]} 0-1

[Event "Betsys MČR v online bleskovém šachu 2021"]
[Site "Chess.com"]
[Date "2021.04.17"]
[Round "9"]
[White "pavelchrz"]
[Black "hever99"]
[Result "0-1"]
[WhiteElo "1696"]
[BlackElo "2012"]
[TimeControl "180+1"]
[EndTime "10:30:42 PDT"]
[Termination "Uživatel hever99 zvítězil na čas"]

1. e4 {[%clk 0:02:53]} 1... c5 {[%clk 0:02:59.6]} 2. Nf3 {[%clk 0:02:52.7]} 2...
d6 {[%clk 0:02:59.8]} 3. d4 {[%clk 0:02:53]} 3... cxd4 {[%clk 0:03:00]} 4. Nxd4
{[%clk 0:02:52.7]} 4... Nf6 {[%clk 0:03:00.1]} 5. Nc3 {[%clk 0:02:52.5]} 5... a6
{[%clk 0:03:00.4]} 6. Bc4 {[%clk 0:02:50.8]} 6... e6 {[%clk 0:02:59.8]} 7. Qe2
{[%clk 0:02:49.9]} 7... b5 {[%clk 0:02:56.9]} 8. Bb3 {[%clk 0:02:48.5]} 8... Be7
{[%clk 0:02:48.5]} 9. O-O {[%clk 0:02:43.7]} 9... O-O {[%clk 0:02:48.5]} 10. Kh1
{[%clk 0:02:43.4]} 10... b4 {[%clk 0:02:40]} 11. Nd1 {[%clk 0:02:36.7]} 11...
Qc7 {[%clk 0:02:38.6]} 12. f4 {[%clk 0:02:35.3]} 12... Nc6 {[%clk 0:02:24.5]}
13. Nf3 {[%clk 0:02:06.6]} 13... Bb7 {[%clk 0:02:02.7]} 14. Ng5 {[%clk
0:02:05.2]} 14... Na5 {[%clk 0:01:58.7]} 15. e5 {[%clk 0:01:54]} 15... Nd5
{[%clk 0:01:37.5]} 16. Qh5 {[%clk 0:01:44.4]} 16... Bxg5 {[%clk 0:01:31.6]} 17.
fxg5 {[%clk 0:01:41.7]} 17... Nxb3 {[%clk 0:01:08.8]} 18. axb3 {[%clk
0:01:35.1]} 18... Ne7 {[%clk 0:00:47.5]} 19. Ne3 {[%clk 0:01:10.4]} 19... g6
{[%clk 0:00:27.6]} 20. Qh6 {[%clk 0:00:59.7]} 20... Nf5 {[%clk 0:00:19.8]} 21.
Nxf5 {[%clk 0:00:30.6]} 21... exf5 {[%clk 0:00:19.7]} 22. Be3 {[%clk 0:00:20.8]}
22... dxe5 {[%clk 0:00:18.7]} 23. Rf2 {[%clk 0:00:17.4]} 23... f4 {[%clk
0:00:18.7]} 24. Bd2 {[%clk 0:00:09.3]} 24... f6 {[%clk 0:00:18.8]} 25. Raf1
{[%clk 0:00:08.2]} 25... fxg5 {[%clk 0:00:17.4]} 26. Qxg5 {[%clk 0:00:08.3]}
26... Qc6 {[%clk 0:00:13.6]} 27. h4 {[%clk 0:00:06.9]} 27... Qf6 {[%clk
0:00:13.5]} 28. Qxf6 {[%clk 0:00:05.1]} 28... Rxf6 {[%clk 0:00:13.4]} 29. Kh2
{[%clk 0:00:03.8]} 29... Raf8 {[%clk 0:00:13.8]} 30. h5 {[%clk 0:00:03.5]} 30...
g5 {[%clk 0:00:12.8]} 31. Kh3 {[%clk 0:00:02]} 31... Bc8+ {[%clk 0:00:11.9]} 32.
Kh2 {[%clk 0:00:02]} 32... g4 {[%clk 0:00:11.9]} 33. Kh1 {[%clk 0:00:01.9]}
33... g3 {[%clk 0:00:11.4]} 34. Re2 {[%clk 0:00:01.6]} 34... Re6 {[%clk
0:00:09.3]} 0-1

[Event "Betsys MČR v online bleskovém šachu 2021"]
[Site "Chess.com"]
[Date "2021.04.17"]
[Round "9"]
[White "povrlak60"]
[Black "Hapinka"]
[Result "0-1"]
[WhiteElo "1608"]
[BlackElo "1825"]
[TimeControl "180+1"]
[EndTime "10:30:42 PDT"]
[Termination "Uživatel Hapinka zvítězil na čas"]

1. e4 {[%clk 0:03:00.9]} 1... e5 {[%clk 0:03:00.1]} 2. d4 {[%clk 0:02:59.8]}
2... exd4 {[%clk 0:02:58]} 3. Qxd4 {[%clk 0:02:59.5]} 3... Qf6 {[%clk
0:02:54.7]} 4. Qe3 {[%clk 0:02:58.8]} 4... Nc6 {[%clk 0:02:47.4]} 5. Nc3 {[%clk
0:02:58.2]} 5... Bb4 {[%clk 0:02:43.5]} 6. Bd2 {[%clk 0:02:57.2]} 6... Nge7
{[%clk 0:02:40.7]} 7. O-O-O {[%clk 0:02:56]} 7... O-O {[%clk 0:02:33.4]} 8. Bc4
{[%clk 0:02:55.2]} 8... d6 {[%clk 0:02:32.5]} 9. f4 {[%clk 0:02:36.8]} 9... Na5
{[%clk 0:02:20.1]} 10. Bd3 {[%clk 0:02:34.9]} 10... Be6 {[%clk 0:02:13.5]} 11.
a3 {[%clk 0:02:32.3]} 11... Bc5 {[%clk 0:02:10.9]} 12. Qg3 {[%clk 0:02:23.3]}
12... Nc4 {[%clk 0:02:08.7]} 13. Bxc4 {[%clk 0:02:17.6]} 13... Bxc4 {[%clk
0:02:07.9]} 14. Nf3 {[%clk 0:02:10.7]} 14... Ng6 {[%clk 0:01:55.3]} 15. h4
{[%clk 0:02:07.1]} 15... h5 {[%clk 0:01:44.1]} 16. Qg5 {[%clk 0:01:41.9]} 16...
Qxg5 {[%clk 0:01:41.5]} 17. hxg5 {[%clk 0:01:41.8]} 17... f6 {[%clk 0:01:37.5]}
18. Rxh5 {[%clk 0:01:36.1]} 18... fxg5 {[%clk 0:01:37.3]} 19. Rxg5 {[%clk
0:01:18]} 19... Nxf4 {[%clk 0:01:35.1]} 20. Bxf4 {[%clk 0:01:15.9]} 20... Rxf4
{[%clk 0:01:34.6]} 21. Rh1 {[%clk 0:01:04.9]} 21... Raf8 {[%clk 0:00:58.3]} 22.
Kb1 {[%clk 0:00:47.1]} 22... R4f6 {[%clk 0:00:49.6]} 23. Rgh5 {[%clk 0:00:41.4]}
23... Be3 {[%clk 0:00:46.7]} 24. Rh8+ {[%clk 0:00:34.4]} 24... Kf7 {[%clk
0:00:45.9]} 25. Rxf8+ {[%clk 0:00:29.9]} 25... Kxf8 {[%clk 0:00:45.4]} 26. Rh8+
{[%clk 0:00:29.2]} 26... Kf7 {[%clk 0:00:41]} 27. Rc8 {[%clk 0:00:17.7]} 27...
Bb6 {[%clk 0:00:37.9]} 28. Rb8 {[%clk 0:00:14.8]} 28... Rg6 {[%clk 0:00:33]} 29.
Ne1 {[%clk 0:00:10.7]} 29... Bf2 {[%clk 0:00:29.6]} 30. Nf3 {[%clk 0:00:09.5]}
30... Rxg2 {[%clk 0:00:27.2]} 31. b3 {[%clk 0:00:08.1]} 31... Ba6 {[%clk
0:00:24.7]} 32. Rc8 {[%clk 0:00:06.8]} 32... Bb6 {[%clk 0:00:22.5]} 33. Kb2
{[%clk 0:00:04.4]} 33... Rg3 {[%clk 0:00:20.5]} 34. Nh4 {[%clk 0:00:04]} 34...
Rg4 {[%clk 0:00:13.5]} 35. Nf5 {[%clk 0:00:03]} 35... g6 {[%clk 0:00:11.4]} 0-1

[Event "Betsys MČR v online bleskovém šachu 2021"]
[Site "Chess.com"]
[Date "2021.04.17"]
[Round "9"]
[White "Ami2013"]
[Black "ritchi12"]
[Result "1-0"]
[WhiteElo "500"]
[BlackElo "945"]
[TimeControl "180+1"]
[EndTime "10:30:42 PDT"]
[Termination "Uživatel Ami2013 zvítězil matem"]

1. e4 {[%clk 0:03:00.9]} 1... e5 {[%clk 0:02:59.8]} 2. Nf3 {[%clk 0:02:59.7]}
2... Nc6 {[%clk 0:02:59.9]} 3. Nc3 {[%clk 0:02:56.9]} 3... Nf6 {[%clk
0:03:00.1]} 4. Bc4 {[%clk 0:02:55]} 4... Bc5 {[%clk 0:03:00]} 5. Rg1 {[%clk
0:02:52]} 5... O-O {[%clk 0:02:55.2]} 6. d3 {[%clk 0:02:47.7]} 6... d6 {[%clk
0:02:51.4]} 7. Bg5 {[%clk 0:02:45.7]} 7... h6 {[%clk 0:02:48.1]} 8. Bh4 {[%clk
0:02:41.4]} 8... Bd4 {[%clk 0:02:45.3]} 9. Nxd4 {[%clk 0:02:37]} 9... exd4
{[%clk 0:02:45.4]} 10. Nd5 {[%clk 0:02:35.9]} 10... Be6 {[%clk 0:02:38.6]} 11.
Nxf6+ {[%clk 0:02:31.8]} 11... gxf6 {[%clk 0:02:32.5]} 12. Qf3 {[%clk
0:02:26.5]} 12... Bxc4 {[%clk 0:02:21.4]} 13. Qg4+ {[%clk 0:02:21.3]} 13... Kh7
{[%clk 0:02:18.6]} 14. Qf5+ {[%clk 0:02:20.3]} 14... Kg8 {[%clk 0:02:06]} 15.
Bxf6 {[%clk 0:02:18.7]} 15... Ne7 {[%clk 0:01:59.7]} 16. Qg4+ {[%clk 0:02:10.1]}
16... Ng6 {[%clk 0:01:57]} 17. Bxd8 {[%clk 0:02:07.2]} 17... Raxd8 {[%clk
0:01:57]} 18. O-O-O {[%clk 0:02:01.7]} 18... Be6 {[%clk 0:01:56.5]} 19. Qh5
{[%clk 0:01:54.2]} 19... Kh7 {[%clk 0:01:54.1]} 20. c3 {[%clk 0:01:45.5]} 20...
dxc3 {[%clk 0:01:52.5]} 21. bxc3 {[%clk 0:01:44.9]} 21... Bxa2 {[%clk
0:01:52.3]} 22. Rd2 {[%clk 0:01:44.2]} 22... Be6 {[%clk 0:01:50.4]} 23. Re2
{[%clk 0:01:43.2]} 23... c5 {[%clk 0:01:49.6]} 24. Re3 {[%clk 0:01:42.7]} 24...
Nf4 {[%clk 0:01:45.3]} 25. Qh4 {[%clk 0:01:31.8]} 25... Ng6 {[%clk 0:01:44.2]}
26. Qg3 {[%clk 0:01:28.1]} 26... a5 {[%clk 0:01:36.1]} 27. Rf3 {[%clk
0:01:26.3]} 27... a4 {[%clk 0:01:33.6]} 28. Kb2 {[%clk 0:01:21.2]} 28... b5
{[%clk 0:01:25.4]} 29. Ra1 {[%clk 0:01:18.4]} 29... d5 {[%clk 0:01:11.6]} 30.
exd5 {[%clk 0:01:16.2]} 30... Bxd5 {[%clk 0:01:11.5]} 31. Rf6 {[%clk 0:01:12]}
31... Be6 {[%clk 0:01:07.1]} 32. Qf3 {[%clk 0:01:01.7]} 32... Ne5 {[%clk
0:00:57.6]} 33. Qh5 {[%clk 0:00:56.7]} 33... Ng6 {[%clk 0:00:54.7]} 34. Rf3
{[%clk 0:00:53.8]} 34... Rg8 {[%clk 0:00:39.7]} 35. g4 {[%clk 0:00:50.8]} 35...
Bxg4 {[%clk 0:00:24.8]} 36. Qxg4 {[%clk 0:00:47.2]} 36... Ne5 {[%clk 0:00:24.6]}
37. Qf5+ {[%clk 0:00:43.9]} 37... Kh8 {[%clk 0:00:20.9]} 38. Qxe5+ {[%clk
0:00:42.9]} 38... Kh7 {[%clk 0:00:17.2]} 39. Qf5+ {[%clk 0:00:39.9]} 39... Kh8
{[%clk 0:00:16.7]} 40. Qxf7 {[%clk 0:00:38]} 40... h5 {[%clk 0:00:14.7]} 41. Rh3
{[%clk 0:00:36.6]} 41... Rg5 {[%clk 0:00:13.3]} 42. Re3 {[%clk 0:00:32.6]} 42...
Rdg8 {[%clk 0:00:12.1]} 43. Re7 {[%clk 0:00:30.3]} 43... R5g7 {[%clk 0:00:11.2]}
44. Qxh5+ {[%clk 0:00:28.7]} 44... Rh7 {[%clk 0:00:08.6]} 45. Qxh7# {[%clk
0:00:26.4]} 1-0

[Event "Betsys MČR v online bleskovém šachu 2021"]
[Site "Chess.com"]
[Date "2021.04.17"]
[Round "9"]
[White "AdeeJa"]
[Black "Pekibeast"]
[Result "1/2-1/2"]
[WhiteElo "1663"]
[BlackElo "1870"]
[TimeControl "180+1"]
[EndTime "10:30:43 PDT"]
[Termination "Remíza opakováním pozice"]

1. e4 {[%clk 0:03:00.9]} 1... e6 {[%clk 0:02:59.8]} 2. d4 {[%clk 0:02:59.3]}
2... d5 {[%clk 0:02:59.8]} 3. Nd2 {[%clk 0:02:54]} 3... dxe4 {[%clk 0:02:59]} 4.
Nxe4 {[%clk 0:02:54]} 4... Nf6 {[%clk 0:02:59.5]} 5. Bg5 {[%clk 0:02:53.3]} 5...
Be7 {[%clk 0:02:59.6]} 6. Bxf6 {[%clk 0:02:50.3]} 6... Bxf6 {[%clk 0:02:59.6]}
7. Nxf6+ {[%clk 0:02:50.4]} 7... Qxf6 {[%clk 0:03:00.5]} 8. c3 {[%clk
0:02:50.6]} 8... Nc6 {[%clk 0:03:01]} 9. Nf3 {[%clk 0:02:48.9]} 9... O-O {[%clk
0:03:01.3]} 10. Bd3 {[%clk 0:02:48.6]} 10... b6 {[%clk 0:02:59.7]} 11. O-O
{[%clk 0:02:48.5]} 11... Bb7 {[%clk 0:02:59.9]} 12. Qe2 {[%clk 0:02:36.1]} 12...
Rad8 {[%clk 0:02:56.9]} 13. Rad1 {[%clk 0:02:34.3]} 13... Rfe8 {[%clk
0:02:55.6]} 14. Bc2 {[%clk 0:02:29.8]} 14... h6 {[%clk 0:02:51.8]} 15. Qe4
{[%clk 0:02:25.2]} 15... g6 {[%clk 0:02:49.9]} 16. Ne5 {[%clk 0:02:08.1]} 16...
Nxd4 {[%clk 0:02:31.2]} 17. Ng4 {[%clk 0:01:39.4]} 17... Qg5 {[%clk 0:01:48.3]}
18. Nxh6+ {[%clk 0:01:15.4]} 18... Qxh6 {[%clk 0:01:43.3]} 19. Qxb7 {[%clk
0:01:14.5]} 19... Nxc2 {[%clk 0:01:43]} 20. Qe4 {[%clk 0:01:10.2]} 20... Rxd1
{[%clk 0:01:41.8]} 21. Rxd1 {[%clk 0:01:09.5]} 21... Na3 {[%clk 0:01:08.3]} 22.
Qa4 {[%clk 0:00:57]} 22... Qf8 {[%clk 0:00:57.2]} 23. bxa3 {[%clk 0:00:50.1]}
23... Rd8 {[%clk 0:00:55.7]} 24. h3 {[%clk 0:00:33.4]} 24... Rxd1+ {[%clk
0:00:55.1]} 25. Qxd1 {[%clk 0:00:32.5]} 25... Qd6 {[%clk 0:00:56]} 26. Qc1
{[%clk 0:00:29.7]} 26... Kg7 {[%clk 0:00:54]} 27. c4 {[%clk 0:00:28.9]} 27...
Qd4 {[%clk 0:00:52.8]} 28. a4 {[%clk 0:00:27]} 28... e5 {[%clk 0:00:52.3]} 29.
Qc2 {[%clk 0:00:26.9]} 29... e4 {[%clk 0:00:52.3]} 30. a3 {[%clk 0:00:23.7]}
30... f5 {[%clk 0:00:51.7]} 31. a5 {[%clk 0:00:23.1]} 31... f4 {[%clk
0:00:51.3]} 32. axb6 {[%clk 0:00:21.8]} 32... axb6 {[%clk 0:00:49.7]} 33. a4
{[%clk 0:00:19]} 33... e3 {[%clk 0:00:48.4]} 34. fxe3 {[%clk 0:00:18.8]} 34...
fxe3 {[%clk 0:00:47]} 35. Kf1 {[%clk 0:00:18.9]} 35... Qf4+ {[%clk 0:00:45.6]}
36. Ke2 {[%clk 0:00:15.8]} 36... Qf2+ {[%clk 0:00:40.3]} 37. Kd3 {[%clk
0:00:07.7]} 37... Qf5+ {[%clk 0:00:40.4]} 38. Kc3 {[%clk 0:00:06.8]} 38... Qe5+
{[%clk 0:00:39.4]} 39. Kd3 {[%clk 0:00:06.7]} 39... Qf5+ {[%clk 0:00:39.9]} 40.
Kc3 {[%clk 0:00:06.9]} 40... Qf2 {[%clk 0:00:21]} 41. Kd3 {[%clk 0:00:04.5]}
41... Qf5+ {[%clk 0:00:19.5]} 1/2-1/2

[Event "Betsys MČR v online bleskovém šachu 2021"]
[Site "Chess.com"]
[Date "2021.04.17"]
[Round "9"]
[White "VOJTASEK2009"]
[Black "Maty_2010"]
[Result "1-0"]
[WhiteElo "1281"]
[BlackElo "976"]
[TimeControl "180+1"]
[EndTime "10:30:43 PDT"]
[Termination "Uživatel VOJTASEK2009 zvítězil matem"]

1. e4 {[%clk 0:03:00.9]} 1... e5 {[%clk 0:03:00.3]} 2. Nf3 {[%clk 0:02:58.9]}
2... Bc5 {[%clk 0:03:00.7]} 3. Bc4 {[%clk 0:02:56.8]} 3... Nf6 {[%clk
0:02:54.8]} 4. d3 {[%clk 0:02:55.4]} 4... d5 {[%clk 0:02:51.2]} 5. exd5 {[%clk
0:02:53.5]} 5... Nxd5 {[%clk 0:02:51]} 6. O-O {[%clk 0:02:50.2]} 6... Nf4 {[%clk
0:02:49.2]} 7. Bxf4 {[%clk 0:02:46.3]} 7... exf4 {[%clk 0:02:49.3]} 8. Re1+
{[%clk 0:02:46.2]} 8... Be6 {[%clk 0:02:41.5]} 9. Bxe6 {[%clk 0:02:43.9]} 9...
fxe6 {[%clk 0:02:41.4]} 10. Rxe6+ {[%clk 0:02:42.1]} 10... Be7 {[%clk 0:02:40]}
11. Nc3 {[%clk 0:02:26.6]} 11... Qd7 {[%clk 0:02:38.4]} 12. Qe2 {[%clk 0:02:23]}
12... Nc6 {[%clk 0:02:36.1]} 13. Re4 {[%clk 0:02:00.5]} 13... O-O-O {[%clk
0:02:30.4]} 14. Rxf4 {[%clk 0:01:54.8]} 14... g5 {[%clk 0:02:28.3]} 15. Rf7
{[%clk 0:01:43.9]} 15... Rhe8 {[%clk 0:02:19.3]} 16. Rxh7 {[%clk 0:01:31.9]}
16... Nb4 {[%clk 0:02:19.2]} 17. a3 {[%clk 0:01:23]} 17... Nd5 {[%clk
0:02:14.9]} 18. Nxd5 {[%clk 0:01:20.3]} 18... Qxd5 {[%clk 0:02:15.3]} 19. Rxe7
{[%clk 0:01:14.3]} 19... Rf8 {[%clk 0:02:04.2]} 20. Re1 {[%clk 0:01:09]} 20...
Qb5 {[%clk 0:01:57.7]} 21. b3 {[%clk 0:00:56.5]} 21... a5 {[%clk 0:01:55.5]} 22.
Qe6+ {[%clk 0:00:55.5]} 22... Kb8 {[%clk 0:01:51.9]} 23. Qg6 {[%clk 0:00:50.1]}
23... Rd5 {[%clk 0:01:28.5]} 24. Re8+ {[%clk 0:00:44]} 24... Rxe8 {[%clk
0:01:27.1]} 25. Rxe8+ {[%clk 0:00:43.4]} 25... Ka7 {[%clk 0:01:26.5]} 26. Qg8
{[%clk 0:00:40.3]} 26... a4 {[%clk 0:01:18.4]} 27. Ra8+ {[%clk 0:00:38.3]} 27...
Kb6 {[%clk 0:01:17.9]} 28. c4 {[%clk 0:00:35.9]} 28... Qxb3 {[%clk 0:01:16.4]}
29. c5+ {[%clk 0:00:25]} 29... Rxc5 {[%clk 0:01:13.7]} 30. Qxb3+ {[%clk
0:00:21]} 30... Kc6 {[%clk 0:01:12]} 31. Qb1 {[%clk 0:00:18.2]} 31... g4 {[%clk
0:01:03.8]} 32. Rf8 {[%clk 0:00:17.6]} 32... gxf3 {[%clk 0:01:02.9]} 33. Rxf3
{[%clk 0:00:17.9]} 33... b5 {[%clk 0:00:59.8]} 34. d4 {[%clk 0:00:18.2]} 34...
Rc4 {[%clk 0:00:57.9]} 35. Qe4+ {[%clk 0:00:17.5]} 35... Kb6 {[%clk 0:00:56.5]}
36. Qe6+ {[%clk 0:00:17.2]} 36... Kb7 {[%clk 0:00:56.1]} 37. Qxc4 {[%clk
0:00:16.7]} 37... bxc4 {[%clk 0:00:55.2]} 38. Rc3 {[%clk 0:00:16.8]} 38... Kb6
{[%clk 0:00:52.4]} 39. Rxc4 {[%clk 0:00:17.3]} 39... Kb5 {[%clk 0:00:53]} 40.
Rc5+ {[%clk 0:00:16.9]} 40... Kb6 {[%clk 0:00:51.4]} 41. Rc4 {[%clk 0:00:15.6]}
41... Kb5 {[%clk 0:00:51.1]} 42. Rb4+ {[%clk 0:00:15.9]} 42... Ka5 {[%clk
0:00:49.8]} 43. Kf1 {[%clk 0:00:16.4]} 43... c6 {[%clk 0:00:46.7]} 44. Ke2
{[%clk 0:00:16.8]} 44... Ka6 {[%clk 0:00:39.6]} 45. Kd3 {[%clk 0:00:16.1]} 45...
Ka5 {[%clk 0:00:38.6]} 46. h4 {[%clk 0:00:16.2]} 46... Ka6 {[%clk 0:00:35]} 47.
h5 {[%clk 0:00:16.1]} 47... c5 {[%clk 0:00:34.3]} 48. dxc5 {[%clk 0:00:15.3]}
48... Ka5 {[%clk 0:00:34.8]} 49. h6 {[%clk 0:00:15.2]} 49... Ka6 {[%clk
0:00:33.8]} 50. h7 {[%clk 0:00:15.6]} 50... Ka7 {[%clk 0:00:34.1]} 51. h8=Q
{[%clk 0:00:15.2]} 51... Ka6 {[%clk 0:00:33.9]} 52. Qa8# {[%clk 0:00:15.2]} 1-0

[Event "Betsys MČR v online bleskovém šachu 2021"]
[Site "Chess.com"]
[Date "2021.04.17"]
[Round "9"]
[White "OlifantCZ"]
[Black "FutureFideMasseur"]
[Result "0-1"]
[WhiteElo "2290"]
[BlackElo "2445"]
[TimeControl "180+1"]
[EndTime "10:30:46 PDT"]
[Termination "Uživatel FutureFideMasseur zvítězil na čas"]

1. c4 {[%clk 0:03:00.9]} 1... e5 {[%clk 0:02:59.1]} 2. g3 {[%clk 0:03:00.8]}
2... Nf6 {[%clk 0:02:57.4]} 3. Bg2 {[%clk 0:02:59]} 3... c6 {[%clk 0:02:57.6]}
4. d4 {[%clk 0:02:57.3]} 4... exd4 {[%clk 0:02:55.7]} 5. Qxd4 {[%clk 0:02:56.2]}
5... Be7 {[%clk 0:02:55.6]} 6. Nc3 {[%clk 0:02:45.9]} 6... O-O {[%clk
0:02:54.8]} 7. Nf3 {[%clk 0:02:43.4]} 7... d6 {[%clk 0:02:51.2]} 8. O-O {[%clk
0:02:42.7]} 8... Be6 {[%clk 0:02:50.2]} 9. b3 {[%clk 0:02:41.6]} 9... Nbd7
{[%clk 0:02:42.6]} 10. Ng5 {[%clk 0:02:26.7]} 10... Bf5 {[%clk 0:02:40.5]} 11.
e4 {[%clk 0:02:24.7]} 11... Bg6 {[%clk 0:02:33.8]} 12. Ba3 {[%clk 0:02:20]}
12... Qa5 {[%clk 0:02:21.7]} 13. Bc1 {[%clk 0:02:08]} 13... Rfe8 {[%clk
0:02:15.7]} 14. Nh3 {[%clk 0:02:04.3]} 14... h6 {[%clk 0:02:05]} 15. Nf4 {[%clk
0:01:54.5]} 15... Bh7 {[%clk 0:02:05]} 16. Bd2 {[%clk 0:01:51.8]} 16... Qc7
{[%clk 0:01:58.8]} 17. Rad1 {[%clk 0:01:40.2]} 17... Ne5 {[%clk 0:01:51.2]} 18.
h3 {[%clk 0:01:25.3]} 18... a6 {[%clk 0:01:46.4]} 19. a4 {[%clk 0:01:10.8]}
19... Rad8 {[%clk 0:01:43.8]} 20. Bc1 {[%clk 0:01:03.7]} 20... Nfd7 {[%clk
0:01:30.7]} 21. Ba3 {[%clk 0:00:58.7]} 21... Nc5 {[%clk 0:01:28.4]} 22. Bxc5
{[%clk 0:00:54.4]} 22... dxc5 {[%clk 0:01:26.3]} 23. Qe3 {[%clk 0:00:54.7]}
23... a5 {[%clk 0:01:18.9]} 24. Nce2 {[%clk 0:00:50.1]} 24... b6 {[%clk
0:01:17.6]} 25. Nc1 {[%clk 0:00:40.1]} 25... Bf6 {[%clk 0:01:17.3]} 26. Nh5
{[%clk 0:00:36.5]} 26... Be7 {[%clk 0:01:17]} 27. f4 {[%clk 0:00:27.9]} 27...
Ng6 {[%clk 0:01:10.7]} 28. e5 {[%clk 0:00:22]} 28... Nf8 {[%clk 0:01:04]} 29. g4
{[%clk 0:00:19.9]} 29... Ne6 {[%clk 0:01:01]} 30. Ng3 {[%clk 0:00:19.6]} 30...
Nd4 {[%clk 0:00:57.6]} 31. Ne4 {[%clk 0:00:19.3]} 31... Rd7 {[%clk 0:00:48.4]}
32. Qg3 {[%clk 0:00:17.2]} 32... Red8 {[%clk 0:00:44]} 33. Nc3 {[%clk
0:00:10.2]} 33... Bc2 {[%clk 0:00:39.8]} 34. Rde1 {[%clk 0:00:09.8]} 34... Bxb3
{[%clk 0:00:34.5]} 35. f5 {[%clk 0:00:10.1]} 35... Bxc4 {[%clk 0:00:30.9]} 36.
f6 {[%clk 0:00:10.4]} 36... Bxf6 {[%clk 0:00:30.5]} 37. Rxf6 {[%clk 0:00:07.3]}
37... gxf6 {[%clk 0:00:30.5]} 38. h4 {[%clk 0:00:05.1]} 38... Ne6 {[%clk
0:00:25.7]} 39. g5 {[%clk 0:00:03.9]} 39... fxg5 {[%clk 0:00:21.8]} 40. hxg5
{[%clk 0:00:03.1]} 40... hxg5 {[%clk 0:00:19.9]} 0-1